[Event "Titled Tuesday Blitz October 31 Early 2023"]
[White "Vakhlamov, Igor L."]
[Black "Elsa167"]
[WhiteFideId "24126748"]
[WhiteElo "2826"]
[BlackElo "2993"]
[Result "0-1"]
[Round "8"]
[TimeControl "180+1"]
[Date "2023.10.31"]
[WhiteClock "0:00:00"]
[BlackClock "0:00:06"]
[Board "8"]

1. e4 {[%clk 0:03:00]}  e6 {[%clk 0:02:57]} 2. d4 {[%clk 0:03:00]}  d5 {[%clk 0:02:57]} 3. Nc3 {[%clk 0:03:00]}  Bb4 {[%clk 0:02:57]} 4. exd5 {[%clk 0:03:00]}  exd5 {[%clk 0:02:58]} 5. Bd3 {[%clk 0:03:00]}  Nc6 {[%clk 0:02:58]} 6. Nf3 {[%clk 0:02:59]}  Nge7 {[%clk 0:02:58]} 7. O-O {[%clk 0:03:00]}  Bf5 {[%clk 0:02:57]} 8. Re1 {[%clk 0:02:36]}  O-O {[%clk 0:02:53]} 9. Bxf5 {[%clk 0:02:32]}  Nxf5 {[%clk 0:02:54]} 10. Qd3 {[%clk 0:02:33]}  Qd7 {[%clk 0:02:53]} 11. Ne5 {[%clk 0:02:17]}  Rfe8 {[%clk 0:02:01]} 12. Bf4 {[%clk 0:02:09]}  Nxe5 {[%clk 0:01:59]} 13. Rxe5 {[%clk 0:02:03]}  Rxe5 {[%clk 0:01:55]} 14. Bxe5 {[%clk 0:02:04]}  Re8 {[%clk 0:01:28]} 15. Nxd5 {[%clk 0:01:08]}  Qxd5 {[%clk 0:01:29]} 16. Qxf5 {[%clk 0:01:08]}  f6 {[%clk 0:01:28]} 17. c4 {[%clk 0:01:09]}  Qxc4 {[%clk 0:01:16]} 18. Qd7 {[%clk 0:01:09]}  Re7 {[%clk 0:00:40]} 19. Qd8+ {[%clk 0:00:46]}  Kf7 {[%clk 0:00:40]} 20. Bf4 {[%clk 0:00:46]}  Qc6 {[%clk 0:00:09]} 21. Be3 {[%clk 0:00:32]}  Bd6 {[%clk 0:00:03]} 22. Qc8 {[%clk 0:00:25]}  b6 {[%clk 0:00:03]} 23. h3 {[%clk 0:00:21]}  Qd7 {[%clk 0:00:03]} 24. Qb7 {[%clk 0:00:20]}  a5 {[%clk 0:00:04]} 25. Rc1 {[%clk 0:00:19]}  Qe6 {[%clk 0:00:04]} 26. b3 {[%clk 0:00:17]}  g5 {[%clk 0:00:04]} 27. Qf3 {[%clk 0:00:16]}  Kg6 {[%clk 0:00:04]} 28. g3 {[%clk 0:00:15]}  Qxh3 {[%clk 0:00:04]} 29. Rc6 {[%clk 0:00:13]}  Qf5 {[%clk 0:00:04]} 30. Qd1 {[%clk 0:00:13]}  Qd5 {[%clk 0:00:03]} 31. Qc2+ {[%clk 0:00:10]}  Kg7 {[%clk 0:00:04]} 32. Rc4 {[%clk 0:00:09]}  h5 {[%clk 0:00:03]} 33. Qd1 {[%clk 0:00:08]}  Kg6 {[%clk 0:00:02]} 34. Qc2+ {[%clk 0:00:08]}  Qe4 {[%clk 0:00:03]} 35. Qd1 {[%clk 0:00:07]}  Bxg3 {[%clk 0:00:03]} 36. Rc3 {[%clk 0:00:06]}  Bf4 {[%clk 0:00:03]} 37. d5 {[%clk 0:00:06]}  Bxe3 {[%clk 0:00:04]} 38. Rxe3 {[%clk 0:00:07]}  Qb4 {[%clk 0:00:03]} 39. Qd3+ {[%clk 0:00:06]}  Kg7 {[%clk 0:00:03]} 40. d6 {[%clk 0:00:03]}  Rxe3 {[%clk 0:00:03]} 41. Qxe3 {[%clk 0:00:02]}  Qxd6 {[%clk 0:00:04]} 42. Qe8 {[%clk 0:00:03]}  Qf8 {[%clk 0:00:03]} 43. Qxh5 {[%clk 0:00:02]}  Qf7 {[%clk 0:00:04]} 44. Qg4 {[%clk 0:00:02]}  Kg6 {[%clk 0:00:04]} 45. Qe4+ {[%clk 0:00:02]}  f5 {[%clk 0:00:05]} 46. Qc6+ {[%clk 0:00:02]}  Kg7 {[%clk 0:00:05]} 47. Qc3+ {[%clk 0:00:02]}  Kg8 {[%clk 0:00:05]} 48. Qe5 {[%clk 0:00:02]}  g4 {[%clk 0:00:05]} 49. Qf4 {[%clk 0:00:02]}  Kg7 {[%clk 0:00:05]} 50. Qe5+ {[%clk 0:00:01]}  Kg6 {[%clk 0:00:06]} 51. Qf4 {[%clk 0:00:01]}  c5 {[%clk 0:00:05]} 52. Qe5 {[%clk 0:00:02]}  Qf6 {[%clk 0:00:06]} 53. Qc7 {[%clk 0:00:02]}  f4 {[%clk 0:00:06]} 54. Qc6 {[%clk 0:00:00]}  Qxc6 {[%clk 0:00:06]} 0-1


[Site "https://www.chess.com"]

[Event "Titled Tuesday Blitz October 31 Early 2023"]
[White "Shimanov, Aleksandr"]
[Black "Alexandre, Anne Shopie Elizabeth"]
[WhiteFideId "4198603"]
[BlackFideId "11902418"]
[WhiteElo "2976"]
[BlackElo "2834"]
[Result "1-0"]
[Round "8"]
[TimeControl "180+1"]
[Date "2023.10.31"]
[WhiteClock "0:01:12"]
[BlackClock "0:01:45"]
[Board "9"]

1. d4 {[%clk 0:03:00]}  Nf6 {[%clk 0:02:59]} 2. Bg5 {[%clk 0:03:00]}  e6 {[%clk 0:03:00]} 3. Nd2 {[%clk 0:02:59]}  h6 {[%clk 0:02:57]} 4. Bh4 {[%clk 0:02:59]}  c5 {[%clk 0:02:53]} 5. e4 {[%clk 0:02:53]}  g5 {[%clk 0:02:49]} 6. Bg3 {[%clk 0:02:53]}  cxd4 {[%clk 0:02:49]} 7. e5 {[%clk 0:02:54]}  Nd5 {[%clk 0:02:49]} 8. h4 {[%clk 0:02:54]}  Nc6 {[%clk 0:02:39]} 9. hxg5 {[%clk 0:02:54]}  Qxg5 {[%clk 0:02:40]} 10. Ngf3 {[%clk 0:02:54]}  Qd8 {[%clk 0:02:40]} 11. a3 {[%clk 0:02:31]}  b6 {[%clk 0:02:39]} 12. Ne4 {[%clk 0:02:22]}  Bb7 {[%clk 0:02:25]} 13. Nxd4 {[%clk 0:02:14]}  Nxd4 {[%clk 0:02:20]} 14. Qxd4 {[%clk 0:02:15]}  Qc7 {[%clk 0:02:13]} 15. c4 {[%clk 0:02:12]}  Bc5 {[%clk 0:02:12]} 16. Qd2 {[%clk 0:02:06]}  Ne7 {[%clk 0:02:12]} 17. Nf6+ {[%clk 0:02:06]}  Kd8 {[%clk 0:02:12]} 18. O-O-O {[%clk 0:02:02]}  Bc6 {[%clk 0:02:09]} 19. Rxh6 {[%clk 0:01:48]}  Rxh6 {[%clk 0:02:02]} 20. Qxh6 {[%clk 0:01:49]}  Nf5 {[%clk 0:01:54]} 21. Qh8+ {[%clk 0:01:23]}  Ke7 {[%clk 0:01:54]} 22. Ng8+ {[%clk 0:01:24]}  Rxg8 {[%clk 0:01:53]} 23. Qxg8 {[%clk 0:01:24]}  Nxg3 {[%clk 0:01:53]} 24. Qxg3 {[%clk 0:01:22]}  a5 {[%clk 0:01:52]} 25. Be2 {[%clk 0:01:18]}  Be4 {[%clk 0:01:45]} 26. Qh4+ {[%clk 0:01:12]} 1-0


[Site "https://www.chess.com"]

[Event "Titled Tuesday Blitz October 31 Early 2023"]
[White "Sattarov, Bobir"]
[Black "Chigaev, Maksim"]
[WhiteFideId "14203081"]
[BlackFideId "4108116"]
[WhiteElo "2821"]
[BlackElo "2925"]
[Result "0-1"]
[Round "8"]
[TimeControl "180+1"]
[Date "2023.10.31"]
[WhiteClock "0:00:00"]
[BlackClock "0:00:03"]
[Board "11"]

1. e4 {[%clk 0:03:00]}  c5 {[%clk 0:02:58]} 2. Nc3 {[%clk 0:03:00]}  d6 {[%clk 0:02:57]} 3. Nf3 {[%clk 0:02:53]}  a6 {[%clk 0:02:56]} 4. g3 {[%clk 0:02:51]}  g6 {[%clk 0:02:52]} 5. Bg2 {[%clk 0:02:30]}  Bg7 {[%clk 0:02:51]} 6. O-O {[%clk 0:02:30]}  Nc6 {[%clk 0:02:50]} 7. d3 {[%clk 0:02:29]}  Bg4 {[%clk 0:02:49]} 8. h3 {[%clk 0:02:28]}  Bxf3 {[%clk 0:02:49]} 9. Qxf3 {[%clk 0:02:29]}  Nf6 {[%clk 0:02:50]} 10. Qd1 {[%clk 0:02:28]}  O-O {[%clk 0:02:50]} 11. f4 {[%clk 0:02:25]}  Nd7 {[%clk 0:02:50]} 12. g4 {[%clk 0:02:22]}  b5 {[%clk 0:02:48]} 13. e5 {[%clk 0:02:17]}  Rc8 {[%clk 0:02:38]} 14. exd6 {[%clk 0:02:09]}  e6 {[%clk 0:02:24]} 15. a4 {[%clk 0:02:05]}  Nd4 {[%clk 0:02:07]} 16. axb5 {[%clk 0:02:03]}  axb5 {[%clk 0:02:07]} 17. Ra6 {[%clk 0:01:48]}  c4 {[%clk 0:02:04]} 18. dxc4 {[%clk 0:01:43]}  Nc5 {[%clk 0:01:57]} 19. Ra2 {[%clk 0:01:20]}  bxc4 {[%clk 0:01:40]} 20. Be3 {[%clk 0:01:10]}  Qxd6 {[%clk 0:01:39]} 21. Rf2 {[%clk 0:01:09]}  Rfd8 {[%clk 0:00:55]} 22. Rd2 {[%clk 0:01:07]}  e5 {[%clk 0:00:55]} 23. Bd5 {[%clk 0:00:45]}  Nce6 {[%clk 0:00:39]} 24. Ra7 {[%clk 0:00:40]}  exf4 {[%clk 0:00:28]} 25. Bf2 {[%clk 0:00:39]}  Qc5 {[%clk 0:00:18]} 26. Bxe6 {[%clk 0:00:29]}  fxe6 {[%clk 0:00:08]} 27. Rxg7+ {[%clk 0:00:28]}  Kxg7 {[%clk 0:00:09]} 28. Rxd4 {[%clk 0:00:23]}  Qe7 {[%clk 0:00:09]} 29. Qe2 {[%clk 0:00:18]}  e5 {[%clk 0:00:09]} 30. Rxf4 {[%clk 0:00:18]}  Rf8 {[%clk 0:00:09]} 31. Re4 {[%clk 0:00:17]}  Rce8 {[%clk 0:00:07]} 32. Bd4 {[%clk 0:00:16]}  Qh4 {[%clk 0:00:08]} 33. Bf2 {[%clk 0:00:06]}  Qxh3 {[%clk 0:00:08]} 34. Rxe5 {[%clk 0:00:06]}  Rxf2 {[%clk 0:00:06]} 35. Kxf2 {[%clk 0:00:05]}  Qh2+ {[%clk 0:00:05]} 36. Kf3 {[%clk 0:00:06]}  Qxe5 {[%clk 0:00:05]} 37. Qxe5+ {[%clk 0:00:05]}  Rxe5 {[%clk 0:00:05]} 38. b3 {[%clk 0:00:04]}  cxb3 {[%clk 0:00:04]} 39. cxb3 {[%clk 0:00:04]}  Rc5 {[%clk 0:00:04]} 40. Ne2 {[%clk 0:00:04]}  Rb5 {[%clk 0:00:04]} 41. Nd4 {[%clk 0:00:05]}  Rb4 {[%clk 0:00:05]} 42. Ke3 {[%clk 0:00:05]}  h5 {[%clk 0:00:05]} 43. g5 {[%clk 0:00:05]}  h4 {[%clk 0:00:04]} 44. Kd3 {[%clk 0:00:00]}  Rxd4+ {[%clk 0:00:03]} 0-1


[Site "https://www.chess.com"]

[Event "Titled Tuesday Blitz October 31 Early 2023"]
[White "Mahdavi, Reza"]
[Black "Taher, Yoseph Theolifus"]
[WhiteFideId "12595926"]
[BlackFideId "7105347"]
[WhiteElo "2919"]
[BlackElo "2788"]
[Result "1-0"]
[Round "8"]
[TimeControl "180+1"]
[Date "2023.10.31"]
[WhiteClock "0:00:20"]
[BlackClock "0:00:00"]
[Board "12"]

1. c4 {[%clk 0:03:00]}  e5 {[%clk 0:02:57]} 2. Nc3 {[%clk 0:02:59]}  Bb4 {[%clk 0:02:57]} 3. Nd5 {[%clk 0:02:46]}  a5 {[%clk 0:02:56]} 4. a3 {[%clk 0:02:43]}  Bc5 {[%clk 0:02:54]} 5. e3 {[%clk 0:02:36]}  Nc6 {[%clk 0:02:52]} 6. Ne2 {[%clk 0:02:30]}  Nf6 {[%clk 0:02:50]} 7. d4 {[%clk 0:02:26]}  Ba7 {[%clk 0:02:51]} 8. b4 {[%clk 0:02:16]}  d6 {[%clk 0:02:45]} 9. Nxf6+ {[%clk 0:02:09]}  Qxf6 {[%clk 0:02:44]} 10. d5 {[%clk 0:01:56]}  Ne7 {[%clk 0:02:41]} 11. Bb2 {[%clk 0:01:55]}  O-O {[%clk 0:02:39]} 12. Ng3 {[%clk 0:01:56]}  Nf5 {[%clk 0:02:31]} 13. Bd3 {[%clk 0:01:55]}  Ne7 {[%clk 0:02:14]} 14. Qh5 {[%clk 0:01:35]}  g6 {[%clk 0:02:12]} 15. Qh6 {[%clk 0:01:36]}  Qg7 {[%clk 0:02:10]} 16. Qxg7+ {[%clk 0:01:35]}  Kxg7 {[%clk 0:02:11]} 17. Kd2 {[%clk 0:01:31]}  h5 {[%clk 0:02:08]} 18. Ne2 {[%clk 0:01:30]}  f6 {[%clk 0:02:06]} 19. Rhc1 {[%clk 0:01:21]}  Bd7 {[%clk 0:02:05]} 20. f3 {[%clk 0:01:18]}  Nf5 {[%clk 0:02:00]} 21. Bxf5 {[%clk 0:01:12]}  Bxf5 {[%clk 0:02:01]} 22. e4 {[%clk 0:01:05]}  Bd7 {[%clk 0:02:00]} 23. c5 {[%clk 0:01:04]}  Rf7 {[%clk 0:01:52]} 24. h3 {[%clk 0:00:42]}  f5 {[%clk 0:01:40]} 25. f4 {[%clk 0:00:38]}  Re8 {[%clk 0:01:40]} 26. fxe5 {[%clk 0:00:35]}  dxe5 {[%clk 0:01:41]} 27. Rf1 {[%clk 0:00:33]}  Kh7 {[%clk 0:01:32]} 28. Rae1 {[%clk 0:00:32]}  f4 {[%clk 0:01:30]} 29. Nc1 {[%clk 0:00:32]}  g5 {[%clk 0:01:05]} 30. Nd3 {[%clk 0:00:32]}  Rfe7 {[%clk 0:01:05]} 31. Bc3 {[%clk 0:00:24]}  Bb5 {[%clk 0:00:59]} 32. Rf2 {[%clk 0:00:23]}  b6 {[%clk 0:00:40]} 33. c6 {[%clk 0:00:21]}  Bxd3 {[%clk 0:00:40]} 34. Kxd3 {[%clk 0:00:22]}  b5 {[%clk 0:00:41]} 35. Rc2 {[%clk 0:00:20]}  a4 {[%clk 0:00:41]} 36. Bb2 {[%clk 0:00:21]}  Kg6 {[%clk 0:00:39]} 37. Rec1 {[%clk 0:00:20]}  Bb6 {[%clk 0:00:35]} 38. Rc5 {[%clk 0:00:20]}  Bxc5 {[%clk 0:00:31]} 39. bxc5 {[%clk 0:00:20]}  g4 {[%clk 0:00:26]} 40. hxg4 {[%clk 0:00:20]}  hxg4 {[%clk 0:00:27]} 41. Bc3 {[%clk 0:00:21]}  Rf7 {[%clk 0:00:24]} 42. d6 {[%clk 0:00:21]}  f3 {[%clk 0:00:19]} 43. gxf3 {[%clk 0:00:21]}  Rxf3+ {[%clk 0:00:18]} 44. Ke2 {[%clk 0:00:21]}  Rh8 {[%clk 0:00:15]} 45. Bxe5 {[%clk 0:00:21]}  Rg8 {[%clk 0:00:02]} 46. d7 {[%clk 0:00:20]}  Kf7 {[%clk 0:00:01]} 47. Bxc7 {[%clk 0:00:20]}  Ke7 {[%clk 0:00:00]} 48. Rd1 {[%clk 0:00:20]} 1-0


[Site "https://www.chess.com"]

[Event "Titled Tuesday Blitz October 31 Early 2023"]
[White "Csonka, Balazs"]
[Black "Mitrabha, Guha"]
[WhiteFideId "742910"]
[BlackFideId "5057000"]
[WhiteElo "2741"]
[BlackElo "2838"]
[Result "0-1"]
[Round "8"]
[TimeControl "180+1"]
[Date "2023.10.31"]
[WhiteClock "0:00:04"]
[BlackClock "0:00:52"]
[Board "13"]

1. e4 {[%clk 0:03:00]}  c6 {[%clk 0:02:59]} 2. Nc3 {[%clk 0:02:55]}  d5 {[%clk 0:02:59]} 3. Nf3 {[%clk 0:02:55]}  dxe4 {[%clk 0:02:59]} 4. Nxe4 {[%clk 0:02:55]}  Nf6 {[%clk 0:02:59]} 5. Qe2 {[%clk 0:02:55]}  Nxe4 {[%clk 0:02:59]} 6. Qxe4 {[%clk 0:02:56]}  Be6 {[%clk 0:03:00]} 7. b3 {[%clk 0:02:46]}  Nd7 {[%clk 0:02:56]} 8. Bb2 {[%clk 0:02:45]}  Nf6 {[%clk 0:02:56]} 9. Qh4 {[%clk 0:02:34]}  Bf5 {[%clk 0:02:51]} 10. O-O-O {[%clk 0:02:33]}  e6 {[%clk 0:02:51]} 11. Ne5 {[%clk 0:02:24]}  Be7 {[%clk 0:02:48]} 12. f3 {[%clk 0:02:05]}  a5 {[%clk 0:02:41]} 13. a4 {[%clk 0:01:47]}  Nd5 {[%clk 0:02:33]} 14. Qf2 {[%clk 0:01:40]}  Nb4 {[%clk 0:02:28]} 15. d3 {[%clk 0:01:40]}  h6 {[%clk 0:02:26]} 16. g4 {[%clk 0:01:35]}  Bh7 {[%clk 0:02:25]} 17. f4 {[%clk 0:01:36]}  b5 {[%clk 0:02:18]} 18. axb5 {[%clk 0:01:32]}  cxb5 {[%clk 0:02:19]} 19. Bg2 {[%clk 0:01:33]}  Rc8 {[%clk 0:02:17]} 20. Rd2 {[%clk 0:01:23]}  a4 {[%clk 0:02:07]} 21. bxa4 {[%clk 0:01:10]}  bxa4 {[%clk 0:02:08]} 22. f5 {[%clk 0:01:10]}  O-O {[%clk 0:02:03]} 23. h4 {[%clk 0:00:50]}  a3 {[%clk 0:01:27]} 24. Ba1 {[%clk 0:00:50]}  Bf6 {[%clk 0:01:04]} 25. Be4 {[%clk 0:00:44]}  Qc7 {[%clk 0:00:57]} 26. Qh2 {[%clk 0:00:17]}  Na2+ {[%clk 0:00:56]} 27. Kd1 {[%clk 0:00:16]}  Nc3+ {[%clk 0:00:57]} 28. Bxc3 {[%clk 0:00:13]}  Qxc3 {[%clk 0:00:58]} 29. Nd7 {[%clk 0:00:14]}  a2 {[%clk 0:00:56]} 30. Ke2 {[%clk 0:00:14]}  exf5 {[%clk 0:00:51]} 31. gxf5 {[%clk 0:00:09]}  a1=Q {[%clk 0:00:51]} 32. Rxa1 {[%clk 0:00:08]}  Qxa1 {[%clk 0:00:52]} 33. Nxf6+ {[%clk 0:00:04]}  Qxf6 {[%clk 0:00:52]} 0-1


[Site "https://www.chess.com"]

[Event "Titled Tuesday Blitz October 31 Early 2023"]
[White "Bluebaum, Matthias"]
[Black "NovozhilovSemen"]
[WhiteFideId "24651516"]
[WhiteElo "3058"]
[BlackElo "2743"]
[Result "1-0"]
[Round "8"]
[TimeControl "180+1"]
[Date "2023.10.31"]
[WhiteClock "0:00:25"]
[BlackClock "0:00:04"]
[Board "17"]

1. d4 {[%clk 0:03:00]}  Nf6 {[%clk 0:02:59]} 2. c4 {[%clk 0:03:01]}  e6 {[%clk 0:02:59]} 3. Nc3 {[%clk 0:03:02]}  Bb4 {[%clk 0:02:59]} 4. e3 {[%clk 0:03:02]}  O-O {[%clk 0:02:59]} 5. Bd2 {[%clk 0:03:03]}  d5 {[%clk 0:02:57]} 6. Nf3 {[%clk 0:03:03]}  b6 {[%clk 0:02:56]} 7. cxd5 {[%clk 0:03:03]}  exd5 {[%clk 0:02:56]} 8. Rc1 {[%clk 0:03:04]}  a6 {[%clk 0:02:54]} 9. Bd3 {[%clk 0:03:05]}  Bb7 {[%clk 0:02:49]} 10. O-O {[%clk 0:03:05]}  Bd6 {[%clk 0:02:48]} 11. Ne5 {[%clk 0:03:05]}  c5 {[%clk 0:02:47]} 12. f4 {[%clk 0:03:06]}  Nc6 {[%clk 0:02:46]} 13. Ng4 {[%clk 0:03:06]}  Be7 {[%clk 0:02:29]} 14. Nxf6+ {[%clk 0:03:05]}  Bxf6 {[%clk 0:02:30]} 15. dxc5 {[%clk 0:03:06]}  bxc5 {[%clk 0:02:30]} 16. b3 {[%clk 0:03:07]}  Nb4 {[%clk 0:02:20]} 17. Bb1 {[%clk 0:03:05]}  d4 {[%clk 0:02:17]} 18. Na4 {[%clk 0:03:05]}  Nd5 {[%clk 0:01:42]} 19. Nxc5 {[%clk 0:02:58]}  dxe3 {[%clk 0:01:42]} 20. Nxb7 {[%clk 0:02:31]}  Qb6 {[%clk 0:01:09]} 21. Ba5 {[%clk 0:02:28]}  Qxb7 {[%clk 0:01:08]} 22. Be4 {[%clk 0:02:28]}  Qa7 {[%clk 0:00:50]} 23. Qe2 {[%clk 0:02:16]}  Rab8 {[%clk 0:00:20]} 24. Bxd5 {[%clk 0:01:54]}  Rb5 {[%clk 0:00:20]} 25. Rc7 {[%clk 0:01:54]}  Qd4 {[%clk 0:00:20]} 26. Rd1 {[%clk 0:01:55]}  Qxf4 {[%clk 0:00:16]} 27. Rc4 {[%clk 0:01:18]}  Qf2+ {[%clk 0:00:13]} 28. Qxf2 {[%clk 0:01:15]}  exf2+ {[%clk 0:00:14]} 29. Kxf2 {[%clk 0:01:16]}  Rxa5 {[%clk 0:00:15]} 30. a4 {[%clk 0:01:16]}  Rd8 {[%clk 0:00:15]} 31. Bf3 {[%clk 0:01:07]}  Rxd1 {[%clk 0:00:15]} 32. Bxd1 {[%clk 0:01:06]}  Rd5 {[%clk 0:00:14]} 33. Bf3 {[%clk 0:01:04]}  Rd8 {[%clk 0:00:12]} 34. Ke2 {[%clk 0:00:49]}  Be7 {[%clk 0:00:10]} 35. Rc6 {[%clk 0:00:46]}  a5 {[%clk 0:00:10]} 36. Ke3 {[%clk 0:00:43]}  g6 {[%clk 0:00:09]} 37. Be2 {[%clk 0:00:44]}  Bb4 {[%clk 0:00:10]} 38. Bc4 {[%clk 0:00:44]}  Rd7 {[%clk 0:00:10]} 39. g4 {[%clk 0:00:44]}  Kg7 {[%clk 0:00:10]} 40. h4 {[%clk 0:00:43]}  h6 {[%clk 0:00:10]} 41. Kf3 {[%clk 0:00:43]}  Be7 {[%clk 0:00:10]} 42. h5 {[%clk 0:00:43]}  gxh5 {[%clk 0:00:09]} 43. gxh5 {[%clk 0:00:44]}  Bb4 {[%clk 0:00:10]} 44. Ke4 {[%clk 0:00:44]}  Re7+ {[%clk 0:00:10]} 45. Kf5 {[%clk 0:00:44]}  Re3 {[%clk 0:00:09]} 46. Rc7 {[%clk 0:00:44]}  Rf3+ {[%clk 0:00:10]} 47. Ke4 {[%clk 0:00:43]}  Rf2 {[%clk 0:00:10]} 48. Ke3 {[%clk 0:00:44]}  Rf5 {[%clk 0:00:10]} 49. Ke4 {[%clk 0:00:43]}  Rf2 {[%clk 0:00:10]} 50. Rb7 {[%clk 0:00:43]}  Rf6 {[%clk 0:00:08]} 51. Ke5 {[%clk 0:00:42]}  Rf2 {[%clk 0:00:08]} 52. Kd4 {[%clk 0:00:39]}  Rf6 {[%clk 0:00:08]} 53. Rxb4 {[%clk 0:00:28]}  axb4 {[%clk 0:00:08]} 54. a5 {[%clk 0:00:29]}  Rf2 {[%clk 0:00:06]} 55. a6 {[%clk 0:00:29]}  Ra2 {[%clk 0:00:05]} 56. Kc5 {[%clk 0:00:30]}  f5 {[%clk 0:00:06]} 57. Kxb4 {[%clk 0:00:24]}  f4 {[%clk 0:00:06]} 58. Kb5 {[%clk 0:00:25]}  Kf6 {[%clk 0:00:06]} 59. Kb6 {[%clk 0:00:26]}  Kg5 {[%clk 0:00:07]} 60. b4 {[%clk 0:00:25]}  Kxh5 {[%clk 0:00:04]} 61. Bxa2 {[%clk 0:00:25]} 1-0


[Site "https://www.chess.com"]

[Event "Titled Tuesday Blitz October 31 Early 2023"]
[White "Kislinsky, Alexey"]
[Black "Makarian, Rudik"]
[WhiteFideId "14108801"]
[BlackFideId "44105681"]
[WhiteElo "2739"]
[BlackElo "3031"]
[Result "0-1"]
[Round "8"]
[TimeControl "180+1"]
[Date "2023.10.31"]
[WhiteClock "0:00:15"]
[BlackClock "0:01:23"]
[Board "18"]

1. e4 {[%clk 0:03:00]}  c5 {[%clk 0:03:00]} 2. c3 {[%clk 0:02:59]}  d5 {[%clk 0:03:00]} 3. exd5 {[%clk 0:03:00]}  Nf6 {[%clk 0:03:01]} 4. Bb5+ {[%clk 0:02:53]}  Nbd7 {[%clk 0:03:00]} 5. Nf3 {[%clk 0:02:45]}  Nxd5 {[%clk 0:02:59]} 6. O-O {[%clk 0:02:44]}  a6 {[%clk 0:02:59]} 7. Be2 {[%clk 0:02:42]}  e6 {[%clk 0:02:58]} 8. d4 {[%clk 0:02:43]}  b5 {[%clk 0:02:58]} 9. Nbd2 {[%clk 0:02:37]}  Bb7 {[%clk 0:02:57]} 10. Ne4 {[%clk 0:02:34]}  Be7 {[%clk 0:02:48]} 11. dxc5 {[%clk 0:02:20]}  Nxc5 {[%clk 0:02:47]} 12. Nxc5 {[%clk 0:02:20]}  Bxc5 {[%clk 0:02:47]} 13. Nd4 {[%clk 0:02:21]}  O-O {[%clk 0:02:45]} 14. Bf3 {[%clk 0:02:21]}  Qb6 {[%clk 0:02:45]} 15. Nb3 {[%clk 0:02:21]}  Be7 {[%clk 0:02:43]} 16. Qe2 {[%clk 0:02:19]}  Rad8 {[%clk 0:02:41]} 17. Rd1 {[%clk 0:02:15]}  h6 {[%clk 0:02:34]} 18. Bd2 {[%clk 0:02:08]}  Bf6 {[%clk 0:02:26]} 19. Rac1 {[%clk 0:02:07]}  Rc8 {[%clk 0:02:22]} 20. g3 {[%clk 0:02:01]}  a5 {[%clk 0:02:20]} 21. Na1 {[%clk 0:01:41]}  Rfe8 {[%clk 0:02:08]} 22. Nc2 {[%clk 0:01:38]}  b4 {[%clk 0:02:03]} 23. cxb4 {[%clk 0:01:16]}  Bxb2 {[%clk 0:01:45]} 24. bxa5 {[%clk 0:01:16]}  Qa7 {[%clk 0:01:46]} 25. Bxd5 {[%clk 0:01:06]}  Bxd5 {[%clk 0:01:43]} 26. Bb4 {[%clk 0:00:43]}  Bxc1 {[%clk 0:01:41]} 27. Rxc1 {[%clk 0:00:43]}  Ba8 {[%clk 0:01:39]} 28. a3 {[%clk 0:00:35]}  Qb7 {[%clk 0:01:37]} 29. f3 {[%clk 0:00:34]}  Qxf3 {[%clk 0:01:34]} 30. Qxf3 {[%clk 0:00:34]}  Bxf3 {[%clk 0:01:35]} 31. Rf1 {[%clk 0:00:26]}  Rxc2 {[%clk 0:01:24]} 32. Rxf3 {[%clk 0:00:26]}  Rd8 {[%clk 0:01:24]} 33. Rf1 {[%clk 0:00:24]}  e5 {[%clk 0:01:24]} 34. Re1 {[%clk 0:00:20]}  f6 {[%clk 0:01:24]} 35. Rb1 {[%clk 0:00:18]}  Kf7 {[%clk 0:01:23]} 36. a6 {[%clk 0:00:15]}  Ra8 {[%clk 0:01:23]} 0-1


[Site "https://www.chess.com"]